bitfinex-derivatives/quotes_ETHF0:USTF0_20250416
["timestamp","ask_amount","ask_price","bid_price","bid_amount"]
[1744841320828,3.01961241,1589.2,1589.1,2.98877]
[1744841321126,0.00942241,1589.2,1589.1,2.98877]
[1744841321333,1.26801241,1589.2,1589.1,2.98877]
[1744841322536,1.26801241,1589.2,1589.1,1.7301]
[1744841323228,1.25875,1589.0,1588.9,5.856]
[1744841323429,1.25907,1588.6,1588.5,3.89801]
[1744841324027,4.46687,1588.6,1588.5,1.7658]
[1744841324330,2.98507,1588.6,1588.5,3.02495]
[1744841324717,2.98507,1588.6,1588.5,1.7658]
[1744841329127,1.25922,1588.4,1588.3,0.00942241]
[1744841329728,2.96902,1588.4,1588.3,40.80942241]
[1744841330236,2.96902,1588.4,1588.3,0.00942241]
[1744841330629,6.17682,1588.4,1588.3,0.00942241]
[1744841332236,11.17682,1588.4,1588.3,0.00942241]
[1744841334938,6.17682,1588.4,1588.3,0.00942241]
[1744841338431,0.49346262,1588.8,1588.3,0.00942241]
[1744841338432,3.2078,1588.8,1588.3,5.00942241]
[1744841338740,1.25915,1588.5,1588.4,1.7104]
[1744841340925,1.25915,1588.5,1588.4,2.5925]
[1744841343938,1.25915,1588.5,1588.4,3.85172]
[1744841344240,1.25915,1588.5,1588.4,2.5925]
[1744841345632,1.25915,1588.5,1588.4,3.85172]
[1744841345836,1.25915,1588.5,1588.4,2.5925]
[1744841346540,1.25915,1588.5,1588.4,1.7104]
[1744841346736,4.54805,1588.5,1588.4,1.7104]
[1744841353447,1.25915,1588.5,1588.4,1.7104]
[1744841354948,1.25915,1588.5,1588.4,2.96962]
[1744841355252,4.46695,1588.5,1588.4,1.7104]
[1744841355441,1.25922,1588.4,1588.3,0.00942241]
[1744841355641,4.72642,1588.4,1588.3,0.00942241]
[1744841355850,4.72642,1588.4,1588.3,1.61742241]
[1744841356051,1.25959,1588.0,1587.9,1.25962]
[1744841356348,1.25959,1588.0,1587.9,2.94812]
[1744841356537,1.25953,1588.1,1588.0,1.25954]
[1744841356741,1.25945,1588.2,1588.1,1.25946]
[1744841357136,0.00942241,1588.3,1588.0,0.00942241]
[1744841357343,1.25943,1588.2,1588.1,1.25945]
[1744841357736,0.00942241,1588.3,1588.1,1.25945]
[1744841357949,0.00942241,1588.3,1588.2,2.5712]
[1744841357950,1.26879241,1588.3,1588.2,2.5712]
[1744841361652,1.26879241,1588.3,1588.2,1.7147]
[1744841361948,2.89769241,1588.3,1588.2,1.7147]
[1744841363953,6.10549241,1588.3,1588.2,1.7147]
[1744841364556,1.26879241,1588.3,1588.2,1.7147]
[1744841365052,1.26879241,1588.3,1588.2,2.97408]
[1744841365246,1.26879241,1588.3,1588.2,1.7147]
[1744841369755,1.26879241,1588.3,1588.2,2.97408]
[1744841369955,1.26879241,1588.3,1588.2,1.7147]
[1744841377365,1.26879241,1588.3,1588.2,2.5992]
[1744841378673,1.25946,1588.1,1588.0,0.00942241]
[1744841379566,1.25946,1588.1,1588.0,1.61292241]
[1744841380764,3.00596,1588.1,1588.0,1.61292241]
[1744841380967,1.25946,1588.1,1588.0,1.61292241]
[1744841381773,2.87426,1588.1,1588.0,1.61292241]
[1744841383467,3.72066,1588.1,1588.0,1.61292241]
[1744841386172,4.55156,1588.1,1588.0,1.61292241]
[1744841391573,2.10586,1588.1,1588.0,1.61292241]
[1744841391780,1.25946,1588.1,1588.0,2.87246241]
[1744841391975,1.25946,1588.1,1588.0,1.61292241]
[1744841394072,2.86326,1588.1,1588.0,1.61292241]
[1744841401785,1.25962,1587.9,1587.8,1.7549]
[1744841401991,1.2597,1587.8,1587.7,1.7216]
[1744841402292,2.8801,1587.8,1587.7,1.7216]
[1744841403085,1.25978,1587.7,1587.6,8.25351243]
[1744841403290,3.77088,1587.7,1587.6,8.25351243]
[1744841404185,1.25978,1587.7,1587.6,9.51337243]
[1744841404389,8.55981,1587.9,1587.7,1.25972]
[1744841404390,1.25975,1587.8,1587.7,1.25972]
[1744841404689,1.25975,1587.8,1587.7,3.70032]
[1744841405087,2.94048,1587.9,1587.8,1.2597]
[1744841405288,2.94048,1587.9,1587.8,2.4409]
[1744841405488,4.63238,1587.9,1587.8,2.4409]
[1744841406490,2.12128,1587.9,1587.8,2.4409]
[1744841407482,3.76128,1587.9,1587.8,2.4409]
[1744841408183,1.25977,1587.8,1587.6,1.25982]
[1744841408383,1.25977,1587.8,1587.7,1.25978]
[1744841408882,1.25977,1587.8,1587.7,2.87398]
[1744841409790,1.25977,1587.8,1587.7,1.6142]
[1744841410391,1.25977,1587.8,1587.7,2.87398]
[1744841410691,1.25977,1587.8,1587.7,1.6142]
[1744841410892,2.85897,1587.8,1587.7,2.87398]
[1744841412182,2.85897,1587.8,1587.7,1.6142]
[1744841412792,6.06677,1587.8,1587.7,1.6142]
[1744841413294,1.25978,1587.7,1587.6,1.6878]
[1744841413498,2.91998,1587.7,1587.6,3.4292]
[1744841414193,1.25978,1587.7,1587.6,4.68906]
[1744841414593,4.46756,1587.8,1587.7,1.25978]
[1744841414795,4.4675,1587.8,1587.7,3.00118]
[1744841415091,1.2597,1587.8,1587.7,3.00118]
[1744841417596,1.2597,1587.8,1587.7,1.7414]
[1744841417992,1.2597,1587.8,1587.7,3.00118]
[1744841419296,1.2597,1587.8,1587.7,1.7414]
[1744841419698,1.2597,1587.8,1587.7,3.00118]
[1744841420000,2.93619,1587.9,1587.8,1.2597]
[1744841420300,1.25969,1587.9,1587.8,2.9978]
[1744841420499,3.2078,1588.0,1587.9,1.25962]
[1744841420699,1.25949,1588.1,1588.0,1.2595]
[1744841421194,1.25949,1588.1,1588.0,2.8725]
[1744841421797,1.25944,1588.2,1588.1,1.25946]
[1744841421997,1.26875241,1588.3,1588.2,1.25938]
[1744841422199,0.00942241,1588.3,1588.2,2.93818]
[1744841422487,3.14771,1588.6,1588.2,2.93818]
[1744841422488,3.2078,1588.8,1588.5,1.25915]
[1744841422693,1.25904,1588.7,1588.5,1.25915]
[1744841422892,1.25904,1588.7,1588.6,1.613]
[1744841423898,7.51069241,1588.8,1588.6,2.87207]
[1744841424293,7.51069241,1588.8,1588.7,2.85779]
[1744841424498,6.25172241,1588.8,1588.7,2.85779]
[1744841424702,0.00942241,1588.8,1588.7,2.85779]
[1744841425400,0.00942241,1588.8,1588.7,7.85779]
[1744841425796,0.00942241,1588.8,1588.7,43.65779]
[1744841427203,1.26833241,1588.8,1588.7,42.3988]
[1744841427602,1.26833241,1588.8,1588.7,43.65779]
[1744841428105,1.26833241,1588.8,1588.7,42.3988]
[1744841428403,2.99053241,1588.8,1588.7,42.3988]
[1744841429600,2.99053241,1588.8,1588.7,40.8]
[1744841429807,4.63423241,1588.8,1588.7,40.8]
[1744841430304,4.63423241,1588.8,1588.7,43.82249]
[1744841430507,1.73162241,1588.8,1588.7,43.82249]
[1744841430709,0.00942241,1588.8,1588.7,43.82249]
[1744841431307,1.26833241,1588.8,1588.7,40.8]
[1744841431502,1.26839241,1588.8,1588.6,3.02257]
[1744841431702,1.25899,1588.7,1588.6,3.02257]
[1744841431903,1.25899,1588.7,1588.6,43.82257]
[1744841432099,3.70470241,1588.8,1588.6,43.82257]
[1744841432300,3.70470241,1588.8,1588.7,1.7635]
[1744841435813,0.00942241,1588.8,1588.7,3.02249]
[1744841436314,0.00942241,1588.8,1588.7,8.02249]
[1744841436512,0.00942241,1588.8,1588.7,3.02249]
[1744841436709,1.26833241,1588.8,1588.7,42.5635]
[1744841437008,1.26833241,1588.8,1588.7,43.82249]
[1744841437211,1.26833241,1588.8,1588.7,42.5635]
[1744841437409,1.26833241,1588.8,1588.7,3.02249]
[1744841439520,0.00942241,1588.8,1588.7,3.02249]
[1744841440414,1.26833241,1588.8,1588.7,3.02249]
[1744841442513,1.26833241,1588.8,1588.7,1.7635]
[1744841442713,1.25907,1588.6,1588.5,0.00942241]
[1744841443309,3.74807,1588.6,1588.5,0.00942241]
[1744841444011,3.74807,1588.6,1588.5,1.71682241]
[1744841446026,3.74807,1588.6,1588.0,7.7498]
[1744841446027,3.14792,1588.5,1588.0,7.7498]
[1744841446230,1.2593,1588.3,1588.2,1.7331]
[1744841446631,1.2593,1588.3,1588.2,43.79248]
[1744841446836,1.2593,1588.3,1588.2,42.5331]
[1744841447036,1.25938,1588.2,1588.1,0.863]
[1744841447234,3.81438,1588.2,1588.1,1.7331]
[1744841448233,2.555,1588.2,1587.9,1.6704]
[1744841448432,2.97298,1588.1,1588.0,1.25954]
[1744841448735,1.25948,1588.1,1588.0,1.25954]
[1744841449234,1.25948,1588.1,1587.9,43.72997]
[1744841449433,1.25954,1588.0,1587.9,43.72997]
[1744841449636,1.25954,1588.0,1587.9,45.39117]
[1744841449930,1.25954,1588.0,1587.9,1.6612]
[1744841450138,1.7135,1588.1,1587.9,2.92082]
[1744841450325,2.97296,1588.1,1588.0,1.6612]
[1744841451738,2.97296,1588.1,1588.0,2.92074]
[1744841451933,1.25946,1588.1,1588.0,3.78674]
[1744841452241,1.25941,1588.2,1588.1,1.25946]
[1744841452534,1.25941,1588.2,1588.1,2.93256]
[1744841453438,1.2591,1588.6,1588.5,1.25913]
[1744841453733,1.25901,1588.7,1588.6,1.25906]
[1744841454043,2.11978241,1588.8,1588.6,1.25906]
[1744841454244,2.11978241,1588.8,1588.7,1.25899]
[1744841454538,0.00942241,1588.8,1588.7,1.25899]
[1744841454941,0.00942241,1588.8,1588.6,2.90874]
[1744841455236,0.00942241,1588.8,1588.6,2.90877]
[1744841455237,1.25899,1588.7,1588.6,2.90877]
[1744841456234,2.87161241,1588.8,1588.6,2.90877]
[1744841457339,2.87161241,1588.8,1588.7,1.6497]
[1744841459437,0.00942241,1588.8,1588.7,2.90869]
[1744841461744,1.76332241,1588.8,1588.7,2.90869]
[1744841462548,0.00942241,1588.8,1588.7,2.90869]
[1744841464448,1.26833241,1588.8,1588.7,2.90869]
[1744841464746,3.21722241,1588.8,1588.5,7.11508]
[1744841464942,3.21722241,1588.8,1588.5,5.856]
[1744841464943,4.46687,1588.6,1588.5,5.856]
[1744841465340,4.46687,1588.6,1588.5,7.11515]
[1744841465341,7.01647,1588.6,1588.5,7.11515]
[1744841466342,5.7574,1588.6,1588.5,7.11515]
[1744841466646,1.25907,1588.6,1588.5,5.856]
[1744841466947,3.77527,1588.6,1588.5,7.11515]
[1744841467951,3.77527,1588.6,1588.5,5.856]
[1744841469145,2.5162,1588.6,1588.5,7.11515]
[1744841469349,1.25907,1588.6,1588.5,10.42035]
[1744841469553,6.64695,1588.7,1588.6,1.25907]
[1744841469755,6.64695,1588.7,1588.6,3.01627]
[1744841471650,2.10995,1588.7,1588.6,3.01627]
[1744841472150,0.8509,1588.7,1588.2,9.0638]
[1744841472345,12.59376,1588.6,1588.2,10.32316]
[1744841472544,1.25927,1588.4,1588.3,3.0165]
[1744841472843,1.25927,1588.4,1588.3,1.2593]
[1744841473450,1.25922,1588.4,1588.3,2.91546]
[1744841473948,3.8201,1588.5,1588.3,2.91546]
[1744841474149,4.537,1588.6,1588.3,1.6562]
[1744841474345,5.79608,1588.6,1588.5,1.25915]
[1744841474545,9.36432241,1588.8,1588.3,8.01218]
[1744841474745,5.80537241,1588.8,1588.7,1.25899]
[1744841475054,0.00942241,1588.8,1588.7,1.25899]
[1744841475554,0.00942241,1588.8,1588.7,2.11109]
[1744841475755,1.26833241,1588.8,1588.7,2.11109]
[1744841476151,0.00942241,1588.8,1588.7,2.11109]
[1744841476559,1.26833241,1588.8,1588.7,2.11109]
[1744841476853,0.00942241,1588.8,1588.7,2.11109]
[1744841478154,0.00942241,1588.8,1588.7,10.31889]
[1744841478360,0.00942241,1588.8,1588.7,7.11109]
[1744841478658,1.26833241,1588.8,1588.7,0.8521]
[1744841478958,1.26833241,1588.8,1588.7,2.11109]
[1744841479259,0.00942241,1588.8,1588.7,2.11109]
[1744841479853,1.26833241,1588.8,1588.7,0.8521]
[1744841480156,1.26833241,1588.8,1588.7,2.11109]
[1744841480354,0.00942241,1588.8,1588.7,2.11109]
[1744841481157,1.26833241,1588.8,1588.7,0.8521]
[1744841481361,1.26833241,1588.8,1588.7,2.11109]
[1744841481654,0.00942241,1588.8,1588.7,2.11109]
[1744841482058,1.26833241,1588.8,1588.7,0.8521]
[1744841482251,1.25899,1588.7,1588.6,0.884]
[1744841482556,1.25907,1588.6,1588.5,7.99049]
[1744841482758,1.25907,1588.6,1588.5,0.8754]
[1744841483261,3.78047,1588.6,1588.5,2.13455]
[1744841483559,2.08637,1588.6,1588.5,2.13455]
[1744841484053,0.8273,1588.6,1588.5,2.13455]
[1744841484348,3.81355,1588.7,1588.5,2.13455]
[1744841484550,3.81355,1588.7,1588.6,1.6597]
[1744841484758,3.81355,1588.7,1588.6,2.91877]
[1744841484951,4.54642241,1588.8,1588.7,1.25899]
[1744841485259,0.00942241,1588.8,1588.7,3.72029]
[1744841487060,1.26833241,1588.8,1588.7,3.72029]
[1744841487559,0.00942241,1588.8,1588.7,3.72029]
[1744841491565,0.00942241,1588.8,1588.7,6.92809]
[1744841492063,1.25874,1589.1,1589.0,1.25875]
[1744841492464,1.25855,1589.3,1589.2,1.25859]
[1744841493459,1.25855,1589.3,1589.2,2.87199]
[1744841493771,1.25851,1589.3,1589.2,2.87193]
[1744841494069,1.25851,1589.3,1589.2,43.67193]
[1744841494664,2.94561,1589.3,1589.2,42.4134]
[1744841495559,2.94561,1589.3,1589.2,40.8]
[1744841496869,6.15341,1589.3,1589.2,40.8]
[1744841497074,17.57229,1589.3,1588.7,1.25894]
[1744841497372,1.25891,1588.8,1588.7,1.25894]
[1744841497566,1.25891,1588.8,1588.7,43.68134]
[1744841498066,2.435,1588.9,1588.8,1.25891]
[1744841498266,2.435,1588.9,1588.8,2.88131]
[1744841498670,3.69383,1588.9,1588.8,2.88131]
[1744841499170,3.69383,1588.9,1588.8,1.6224]
[1744841499370,2.08193,1588.9,1588.8,1.6224]
[1744841500066,1.25897,1588.8,1588.6,43.73319241]
[1744841500377,1.25897,1588.8,1588.7,2.95819]
[1744841500668,3.00807,1588.8,1588.7,2.95819]
[1744841500871,0.8231,1588.9,1588.8,1.25891]
[1744841501077,2.08193,1588.9,1588.8,2.95811]
[1744841501868,6.6437,1589.0,1588.9,1.25883]
[1744841502071,4.531,1589.0,1588.9,3.77983]
[1744841502273,7.24873,1589.1,1588.9,3.77983]
[1744841502566,5.99,1589.1,1589.0,2.95795]
[1744841502773,6.2114,1589.2,1589.1,1.25867]
[1744841502967,1.6804,1589.2,1589.1,2.95367]
[1744841503275,5.79890241,1589.4,1589.3,1.25851]
[1744841503471,1.26790241,1589.4,1589.3,1.25851]
[1744841503672,0.00942241,1589.4,1589.3,1.25851]
[1744841503872,0.00942241,1589.4,1589.3,2.12941]
[1744841506178,1.26785241,1589.4,1589.3,0.8709]
[1744841506477,1.26785241,1589.4,1589.3,1.7123]
[1744841507173,0.00942241,1589.4,1589.3,2.97081]
[1744841507369,1.26785241,1589.4,1589.3,2.97081]
[1744841508070,0.00942241,1589.4,1589.3,2.97081]
[1744841508373,1.26785241,1589.4,1589.3,1.7123]
[1744841508573,2.99335241,1589.4,1589.3,1.7123]
[1744841508873,1.73492241,1589.4,1589.3,2.97081]
[1744841509684,0.00942241,1589.4,1589.3,2.97081]
[1744841511173,0.00942241,1589.4,1589.3,6.17861]
[1744841512279,0.00942241,1589.4,1589.3,2.97081]
[1744841513481,0.00942241,1589.4,1589.3,6.17861]
[1744841513678,0.809,1589.8,1589.7,1.25819]
[1744841513882,2.06717,1589.8,1589.6,1.25821]
[1744841514080,3.69157,1589.8,1589.7,1.25819]
[1744841514877,0.81642241,1589.9,1589.8,1.25812]
[1744841515273,0.00942241,1589.9,1589.8,1.25812]
[1744841515475,0.00942241,1589.9,1589.8,2.87552]
[1744841515682,0.00942241,1589.9,1589.8,43.67552]
[1744841515882,0.00942241,1589.9,1589.8,48.67552]
[1744841517074,0.00942241,1589.9,1589.8,43.67552]
[1744841517279,3.2078,1590.5,1590.0,3.14487]
[1744841517280,4.46542,1590.5,1590.0,3.14487]
[1744841517480,1.25772,1590.3,1590.1,3.3482]
[1744841517780,1.25772,1590.3,1590.2,1.6174]
[1744841518177,2.9804,1590.4,1590.2,1.6174]
[1744841518384,2.9804,1590.4,1590.2,2.87514]
[1744841518576,1.25775,1590.3,1590.1,0.8532]
[1744841518778,2.96785,1590.3,1590.1,2.11102]
[1744841519181,3.21722241,1590.5,1590.3,1.25768]
[1744841519480,3.21722241,1590.5,1590.2,1.6945]
[1744841519481,1.25772,1590.3,1590.2,1.6945]
[1744841520784,2.12532,1590.3,1590.2,1.6945]
[1744841521090,1.25804,1589.9,1589.8,40.8]
[1744841521285,1.25819,1589.7,1589.6,0.00942241]
[1744841521488,4.46599,1589.7,1589.6,0.00942241]
[1744841521981,8.98999,1589.7,1589.6,0.00942241]
[1744841522181,5.78219,1589.7,1589.6,0.00942241]
[1744841522482,7.49579,1589.7,1589.6,0.00942241]
[1744841523491,7.49579,1589.7,1589.6,1.72352241]
[1744841523885,4.524,1589.7,1589.6,2.98179241]
[1744841524087,5.78219,1589.7,1589.6,1.72352241]
[1744841524289,3.02669,1589.7,1589.6,1.72352241]
[1744841525392,3.02669,1589.7,1589.6,0.00942241]
[1744841528488,2.91467,1589.8,1589.6,1.60632241]
[1744841528686,2.94567,1589.9,1589.7,1.25819]
[1744841528993,2.94567,1589.9,1589.8,2.85502]
[1744841529292,2.94567,1589.9,1589.8,1.5969]
[1744841530193,1.25807,1589.9,1589.8,1.5969]
[1744841532098,1.7535,1589.9,1589.8,2.85502]
[1744841532805,5.8421,1590.0,1589.8,2.85502]
[1744841533005,7.10006,1590.0,1589.9,1.5953]
[1744841534604,3.2078,1590.0,1589.9,2.85334]
[1744841534904,3.2078,1590.0,1589.9,1.5953]
[1744841534905,4.46576,1590.0,1589.9,1.5953]
[1744841535304,4.46576,1590.0,1589.7,0.8552]
[1744841535305,1.25812,1589.8,1589.7,0.8552]
[1744841535507,1.25812,1589.8,1589.7,1.6698]
[1744841536110,2.96302,1589.8,1589.7,1.6698]
[1744841536599,1.25819,1589.7,1589.6,0.00942241]
[1744841536807,1.25851,1589.3,1589.2,1.25853]
[1744841536998,1.25851,1589.3,1589.2,2.93233]
[1744841537398,1.25851,1589.3,1589.2,43.73233]
[1744841538101,2.89501241,1589.4,1589.2,43.73233]
[1744841538302,0.00942241,1589.4,1589.3,2.93231]
[1744841538807,0.00942241,1589.4,1589.3,7.93231]
[1744841539813,0.00942241,1589.4,1589.3,48.73231]
[1744841541911,0.00942241,1589.4,1589.3,43.73231]
[1744841553213,8.21722241,1589.4,1589.1,1.74092241]
[1744841553511,4.46639,1589.2,1589.1,0.00942241]
[1744841553714,1.25883,1588.9,1588.8,20.62562345]
[1744841553912,5.77883,1588.9,1588.8,20.62562345]
[1744841554216,10.77883,1588.9,1588.8,20.62562345]
[1744841554414,13.28163,1588.9,1588.8,20.62562345]
[1744841555220,8.28163,1588.9,1588.8,20.62562345]
[1744841555519,8.28163,1588.9,1588.7,2.89679241]
[1744841555712,1.6331,1588.8,1588.7,2.89679241]
[1744841555913,2.89201,1588.8,1588.7,2.89679241]
[1744841556115,2.89201,1588.8,1588.7,1.63782241]
[1744841556314,2.89201,1588.8,1588.7,0.00942241]
[1744841557820,7.89201,1588.8,1588.7,0.00942241]
[1744841558028,11.09981,1588.8,1588.7,0.00942241]
[1744841559022,6.09981,1588.8,1588.7,0.00942241]
[1744841559622,2.89201,1588.8,1588.7,0.00942241]
[1744841560527,2.89201,1588.8,1588.7,1.26841241]
[1744841561029,1.6331,1588.8,1588.7,1.26841241]
[1744841561427,2.89201,1588.8,1588.7,1.26841241]
[1744841561725,1.6331,1588.8,1588.7,1.26841241]
[1744841562028,2.89201,1588.8,1588.7,1.26841241]
[1744841562326,1.6331,1588.8,1588.7,1.26841241]
[1744841562525,2.89201,1588.8,1588.7,1.26841241]
[1744841562917,1.6331,1588.8,1588.7,1.26841241]
[1744841563125,2.89201,1588.8,1588.7,1.26841241]
[1744841563518,1.6331,1588.8,1588.7,1.26841241]
[1744841563718,7.7298,1589.3,1589.1,1.25863]
[1744841563922,5.6711,1589.3,1589.2,1.25859]
[1744841564225,0.00942241,1589.4,1589.3,1.25851]
[1744841564424,0.00942241,1589.4,1589.3,2.95131]
[1744841564623,0.00942241,1589.4,1589.3,48.75131]
[1744841564828,0.00942241,1589.4,1589.3,49.56971]
[1744841565224,0.00942241,1589.4,1589.3,44.56971]
[1744841566324,0.00942241,1589.4,1589.3,43.75131]
[1744841566523,1.66302241,1589.4,1589.3,43.75131]
[1744841567022,0.00942241,1589.4,1589.3,43.75131]
[1744841569624,0.00942241,1589.4,1589.3,48.75131]
[1744841570627,0.00942241,1589.4,1589.3,53.27231]
[1744841570828,2.85687,1589.8,1589.7,1.25819]
[1744841572030,2.85687,1589.8,1589.7,2.92979]
[1744841574731,2.85687,1589.8,1589.7,1.6716]
[1744841574937,1.25819,1589.7,1589.6,0.00942241]
[1744841575138,6.06479,1589.7,1589.6,1.26769241]
[1744841575340,2.85699,1589.7,1589.6,1.26769241]
[1744841576040,6.06479,1589.7,1589.6,0.00942241]
[1744841576238,11.06479,1589.7,1589.6,0.00942241]
[1744841577236,3.14577,1589.6,1589.3,1.25849]
[1744841577440,1.25846,1589.4,1589.2,1.25853]
[1744841577736,1.25851,1589.3,1589.2,1.25853]
[1744841578033,1.25851,1589.3,1589.2,2.89685]
[1744841578445,1.25851,1589.3,1589.2,1.6383]
[1744841578939,1.25851,1589.3,1589.1,0.00942241]
[1744841578940,1.25859,1589.2,1589.1,0.00942241]
[1744841579147,7.53759,1589.2,1589.1,0.00942241]
[1744841579335,7.53759,1589.2,1589.1,1.60462241]
[1744841581940,4.516,1589.2,1589.1,1.60462241]
[1744841582245,1.25851,1589.3,1589.2,1.25859]
[1744841584847,1.25851,1589.3,1589.1,1.60462241]
[1744841585041,9.37979,1589.4,1589.1,2.86327241]
[1744841585243,1.25859,1589.2,1589.1,1.60462241]
[1744841585442,1.25859,1589.2,1589.1,1.26809241]
[1744841586642,2.92507,1589.3,1589.2,1.25859]
[1744841587447,2.92507,1589.3,1589.1,1.26802241]
[1744841587649,2.92507,1589.3,1589.2,1.25859]
[1744841587850,2.92507,1589.3,1589.1,1.26803241]
[1744841588553,2.92507,1589.3,1589.1,1.26802241]
[1744841588852,1.25859,1589.2,1589.1,1.26802241]
[1744841589150,4.46639,1589.2,1589.1,0.00942241]
[1744841589350,5.29289,1589.2,1589.1,0.00942241]
[1744841589749,6.17759,1589.2,1589.1,0.00942241]
[1744841590145,2.96979,1589.2,1589.1,0.00942241]
[1744841591857,2.96979,1589.2,1589.1,1.26809241]
[1744841592154,0.8265,1589.2,1589.1,1.26809241]
[1744841592744,2.08509,1589.2,1589.1,1.26809241]
[1744841594561,2.08509,1589.2,1589.1,0.00942241]
[1744841595055,1.25899,1588.7,1588.6,1.25903]
[1744841595353,1.25909,1588.6,1588.4,45.6682]
[1744841595554,2.85929,1588.6,1588.5,1.25915]
[1744841596549,2.85929,1588.6,1588.4,42.4604]
[1744841596550,2.85929,1588.6,1588.4,1.6604]
[1744841596753,1.25922,1588.4,1588.3,8.25351243]
[1744841597457,0.8175,1588.5,1588.3,8.25351243]
[1744841597657,5.77622,1588.4,1588.2,1.25936]
[1744841598455,4.517,1588.4,1588.3,1.2593]
[1744841598657,2.07667,1588.5,1588.3,1.25924]
[1744841598854,1.25926,1588.4,1588.2,1.25933]
[1744841600264,2.07671,1588.5,1588.3,1.2593]
[1744841600758,0.8175,1588.5,1588.4,1.25922]
[1744841600957,8.98393,1588.6,1588.4,1.25922]
[1744841601659,1.25915,1588.5,1588.3,1.25924]
[1744841601861,1.25915,1588.5,1588.4,1.25922]
[1744841602355,1.25922,1588.4,1588.3,0.8619]
[1744841602563,3.2078,1588.4,1588.1,40.8]
[1744841602861,1.2593,1588.3,1588.1,42.05944]
[1744841603157,1.25938,1588.2,1588.1,42.05944]
[1744841603353,1.25938,1588.2,1588.1,40.8]
[1744841603558,1.25938,1588.2,1587.9,1.7038]
[1744841603559,1.25946,1588.1,1588.0,1.2595]
[1744841603950,1.25946,1588.1,1588.0,42.0595]
[1744841604561,1.25943,1588.2,1588.1,1.25946]
[1744841604759,1.25943,1588.2,1588.1,1.6081]
[1744841608157,3.14866,1588.1,1587.7,1.25972]
[1744841608362,1.25962,1587.9,1587.8,1.6252]
[1744841608963,8.542,1588.0,1587.9,1.25962]
[1744841609265,1.25946,1588.1,1587.9,1.25962]
[1744841609467,1.25946,1588.1,1588.0,1.6344]
[1744841609670,5.77346,1588.1,1588.0,1.6344]
[1744841610563,1.25946,1588.1,1588.0,2.89394]
[1744841610760,5.77446,1588.1,1588.0,1.6344]
[1744841611267,1.25946,1588.1,1588.0,1.6344]
[1744841611468,5.77446,1588.1,1588.0,1.6344]
[1744841612269,5.77446,1588.1,1588.0,2.89394]
[1744841612769,5.77446,1588.1,1588.0,1.6344]
[1744841613773,1.25962,1587.9,1587.8,1.25967]
[1744841613960,4.515,1588.1,1587.9,1.25962]
[1744841614162,5.77453,1588.1,1588.0,1.7264]
[1744841614666,7.38933,1588.1,1588.0,1.7264]
[1744841614870,2.87433,1588.1,1588.0,1.7264]
[1744841615369,7.38933,1588.1,1588.0,1.7264]
[1744841616571,2.87433,1588.1,1588.0,1.7264]
[1744841616868,7.38933,1588.1,1588.0,1.7264]
[1744841617167,3.2078,1588.4,1588.1,1.25946]
[1744841617366,1.25918,1588.5,1588.4,1.25922]
[1744841617572,1.25918,1588.5,1588.3,1.25925]
[1744841617771,2.91898,1588.5,1588.4,1.7566]
[1744841618476,2.91898,1588.5,1588.4,3.01582]
[1744841618675,5.3471,1588.6,1588.5,1.25915]
[1744841618873,6.60617,1588.6,1588.5,2.93255]
[1744841619173,5.3471,1588.6,1588.5,2.93255]
[1744841619571,4.515,1588.6,1588.5,2.93255]
[1744841621071,1.26842241,1588.7,1588.6,1.25907]
[1744841621273,0.00942241,1588.7,1588.6,2.93247]
[1744841621778,1.26841241,1588.7,1588.6,1.6734]
[1744841622076,1.26841241,1588.7,1588.6,2.93247]
[1744841622575,0.00942241,1588.7,1588.6,2.93247]
[1744841623275,1.25928,1588.4,1588.2,4.46712]
[1744841623480,1.25928,1588.4,1587.9,3.14904]
[1744841623481,1.25928,1588.4,1588.3,1.5973]
[1744841624274,1.25928,1588.4,1588.3,2.8566]
[1744841624275,2.98188,1588.4,1588.3,2.8566]
[1744841624573,1.7226,1588.4,1588.3,2.8566]
[1744841625272,2.98182,1588.4,1588.3,1.5973]
[1744841625472,1.7226,1588.4,1588.3,2.8566]
[1744841626375,1.7226,1588.4,1588.3,1.5973]
[1744841626376,2.98182,1588.4,1588.3,1.5973]
[1744841626580,1.25958,1588.0,1587.8,3.2078]
[1744841626781,1.25961,1588.0,1587.8,2.85886]
[1744841626977,5.7745,1588.1,1587.9,1.25958]
[1744841627288,4.515,1588.1,1588.0,1.25954]
[1744841627579,9.15512,1588.2,1588.0,1.25954]
[1744841627776,9.15512,1588.2,1588.1,1.7113]
[1744841627977,7.8957,1588.2,1588.1,2.97076]
[1744841628171,9.15508,1588.2,1588.1,1.7113]
[1744841630885,7.8957,1588.2,1587.7,40.8]
[1744841631183,6.1551,1588.2,1587.8,4.9314]
[1744841631479,7.41454,1588.2,1588.0,1.25951]
[1744841631783,7.41454,1588.2,1588.1,1.7236]
[1744841632385,11.76425,1588.4,1588.1,1.7236]
[1744841632685,4.515,1588.4,1588.3,1.2593]
[1744841632983,5.77422,1588.4,1588.3,1.2593]
[1744841633178,5.77422,1588.4,1588.3,1.7236]
[1744841633880,4.515,1588.4,1588.3,2.9829]
[1744841634076,7.46561,1588.5,1588.3,2.9829]
[1744841634283,7.46561,1588.5,1588.4,1.6106]
[1744841634670,2.96162,1588.6,1588.4,1.6106]
[1744841635077,2.96164,1588.6,1588.4,2.86977]
[1744841635277,0.8756,1588.6,1588.5,1.25915]
[1744841635474,5.78342241,1588.7,1588.6,1.25907]
[1744841635676,4.52442241,1588.7,1588.6,1.25907]
[1744841636180,4.52442241,1588.7,1588.6,2.86967]
[1744841636678,0.00942241,1588.7,1588.6,2.86967]
[1744841637080,1.26841241,1588.7,1588.6,1.6106]